Cogmind - Beta 13 @@@ ROGUE MODE // 2024.04.03 @ 19:39:29 Player: GingerCyclops Result: Destroyed by G-34 Mercenary with Small Laser Performance ------------- Evolutions (1) 500 Regions Visited (2) 400 Robots Destroyed (26) 130 Value Destroyed (602) 602 Prototype IDs (0) 0 Alien Tech Used (0) 0 Bonus (0) 0 TOTAL SCORE: 1632 Bonus ------- None Cogmind --------- Core Integrity 0/400 Matter 298/450 Energy 60/100 System Corruption 0% Temperature Cool (6) Movement Core (150) Ox2 Location -9/Materials Parts ------- > --- POWER (1) -------- (None) > --- PROPULSION (3) --- (None) > --- UTILITY (3) ------ Large Matter Pod Terrain Scanner Terrain Scan Processor > --- WEAPON (2) ------- Light EM Pulse Cannon > --- INVENTORY (5) ---- Improved Targeting Computer Recalibrator Peak State ------------ > --- POWER ------------ Light Nuclear Core > --- PROPULSION ------- Light Treads Improved Treads > --- UTILITY ---------- Terrain Scanner Terrain Scan Processor Utility Shielding > --- WEAPON ----------- Beam Rifle Beam Rifle > --- INVENTORY -------- Ion Engine Heat Sink Small Battery Grenade Launcher [Rating: 14] Favorites ----------- Power Light Nuclear Core Engine Ion Engine Power Core Light Nuclear Core Propulsion Aluminum Leg Treads Improved Treads Leg Aluminum Leg Flight Unit VTOL Module Utility Terrain Scanner Device Terrain Scanner Storage Large Matter Pod Processor Terrain Scan Processor Protection Utility Shielding Weapon Beam Rifle Energy Gun Beam Rifle Energy Cannon Light EM Pulse Cannon Ballistic Gun Assault Rifle Launcher Grenade Launcher Build | -11 -10 -9 ------- Run | Yrd Mat Mat Slots Evolved 2 | . . 2 Power . | . . . Propulsion 1 | . . 1 Utility 1 | . . 1 Weapon . | . . . Parts Attached 47 | 6 27 14 Power 6 | 2 3 1 Engine 4 | 2 1 1 Core 2 | . 2 . Reactor . | . . . Propulsion 12 | 2 8 2 Treads 3 | . 1 2 Leg 5 | 2 3 . Wheel . | . . . Hover . | . . . Flight 4 | . 4 . Utility 15 | . 8 7 Device 9 | . 5 4 Storage 2 | . 1 1 Processor 2 | . . 2 Hackware . | . . . Protection 2 | . 2 . Artifact . | . . . Weapon 14 | 2 8 4 Energy Gun 5 | . 3 2 Energy Cannon 1 | . . 1 Ballistic Gun 3 | 2 1 . Ballistic Cannon . | . . . Launcher 5 | . 4 1 Special Weapon . | . . . Impact Weapon . | . . . Slashing Weapon . | . . . Piercing Weapon . | . . . Special Melee Weapon . | . . . Unidentified Prototypes . | . . . Parts Lost 8 | . . 8 Power 2 | . . 2 Propulsion 2 | . . 2 Utility 1 | . . 1 Weapon 3 | . . 3 Highest Loss Streak 3 | . . 3 To Critical Strikes . | . . . Average Slot Usage (%) 84 | . 92 77 Engine 2 | . 2 2 Core 9 | . 11 7 Treads 4 | . . 9 Leg 15 | . 26 4 Device 15 | . 14 16 Processor 5 | . . 11 Protection 5 | . 8 3 Energy Gun 16 | . 12 20 Ballistic Gun 2 | . 5 . Launcher 4 | . 9 . Naked Turns . | . . . Heaviest Build 15 | 9 14 15 Greatest Support 43 | 20 20 43 Greatest Overweight (x) 4 | . 4 4 Average Overweight (x) . | . . . Largest Inventory Capacity 25 | 5 25 5 Average Capacity 5 | 5 5 5 Most Carried 5 | 5 5 5 Average Carried 4 | 2 4 4 Final Capacity 5 | 5 5 5 Final Carried 5 | 5 5 4 Class Distribution -------------------- 85% | Mutant 14% | Skirmisher Dominant Class ---------------- Mutant | -10/Materials Mutant | -9/Materials Resources | -11 -10 -9 ----------- Run | Yrd Mat Mat Matter Collected 624 | 262 81 281 Remotely . | . . . Salvage Created 614 | 46 175 393 Parts 50 | 2 19 29 Haulers Intercepted 1 | . 1 . Recyclers Shooed 1 | . . 1 Parts Field Recycled . | . . . Retrieved Matter . | . . . Parts Self-Destructed . | . . . Prevented . | . . . Kills | -11 -10 -9 ------- Run | Yrd Mat Mat Combat Hostiles Destroyed 20 | 1 6 13 Guns 12 | 1 1 10 AOE 8 | . 5 3 Classes Destroyed 8 | 1 1 6 Worker 1 | . . 1 Builder 1 | . . 1 Hauler 1 | . 1 . Mechanic 1 | . . 1 Watcher 2 | . . 2 Swarmer 7 | . . 7 Grunt 12 | 1 6 5 Sentry 1 | . . 1 Best Kill Streak 6 | 1 6 6 Combat Bots Only 5 | 1 5 5 Max Kills in Single Turn 3 | 1 2 3 Gunslinging 1 | . . 1 Exploded 2 | . 2 2 Melee . | . . . Uniques/NPCs Destroyed . | . . . Combat | -11 -10 -9 -------- Run | Yrd Mat Mat Hostile Shots Fired 145 | 2 17 126 Missed 42 | . 6 36 Damage Taken 1089 | 24 143 922 Core 417 | 12 . 405 Absorbed by Shields . | . . . Regen/Repaired (Parts) 12 | . 12 . Core Remaining (%) 95 | 95 95 . Volleys Fired 66 | 2 12 52 Largest 2 | 2 2 2 Hottest 112 | 40 112 112 Shots Fired 121 | 4 23 94 Gun 108 | 4 17 87 Cannon 4 | . . 4 Launcher 9 | . 6 3 Special . | . . . Kinetic 10 | 4 6 . Thermal 98 | . 11 87 Explosive 9 | . 6 3 Electromagnetic 4 | . . 4 Robot Hit Streak 4 | 2 4 4 Robot Miss Streak 10 | 1 7 10 Penetration Max . | . . . Secondary Targets 1 | . . 1 Max Gunslinging Chain 1 | . . 1 Shots Hit Robots 41 | 2 6 33 Core Hits 43 | 2 14 27 Critical Kills . | . . . Critical Parts Destroyed . | . . . Critical Strikes 3 | . . 3 Burn 3 | . . 3 Melee Attacks . | . . . Impact . | . . . Slashing . | . . . Piercing . | . . . Sneak Attacks . | . . . Combat Hostiles . | . . . Follow-up Attacks . | . . . Damage Inflicted 1449 | 25 456 968 Guns 621 | 25 100 496 Cannons 25 | . . 25 Explosions 802 | . 355 447 Melee . | . . . Ramming 1 | . 1 . Kinetic 40 | 25 15 . Thermal 581 | . 85 496 Explosive 802 | . 355 447 Electromagnetic 25 | . . 25 Impact . | . . . Slashing . | . . . Piercing . | . . . Highest Corruption . | . . . Average Corruption . | . . . Corruption Purged . | . . . Corruption Blocked . | . . . Overload Shots . | . . . Overflow Damage 14 | . . 14 Projectiles . | . . . Explosions 14 | . . 14 Melee . | . . . Knockbacks . | . . . Impact . | . . . Kinetic . | . . . Secondary . | . . . Self-Inflicted Damage 17 | . . 17 Shots 2 | . . 2 Rammed 1 | . . 1 Targets Rammed 2 | . 1 1 Kicked 1 | . 1 . Crushed . | . . . Highest Temperature 440 | . 207 440 Average Temperature 105 | . 83 109 Received Heat Transfer 363 | 12 78 273 Effects 2 | . . 2 Energy Bleed 1 | . . 1 Damage (minor) 1 | . . 1 Siege Activations . | . . . Robots Corrupted . | . . . Combat Hostiles . | . . . Parts Fried . | . . . Impact Corruptions . | . . . Robots Melted . | . . . Combat Hostiles . | . . . Parts Melted . | . . . Heat Transferred 1702 | . 222 1480 Parts Sabotaged . | . . . Parts Stolen . | . . . Parts Stripped . | . . . Power Chain Reactions . | . . . Alert | -11 -10 -9 ------- Run | Yrd Mat Mat Peak Influence 264 | 20 239 264 Initial 40 | . 13 40 Average 122 | 5 142 141 Maximum Alert Level 1 | . 1 1 Low Security (%) 65 | 100 56 62 Level 1 34 | . 43 37 Level 2 . | . . . Level 3 . | . . . Level 4 . | . . . Level 5 . | . . . High Security . | . . . Max Security . | . . . Squads Dispatched 5 | . 2 3 Investigation 3 | . 1 2 Extermination . | . . . Reinforcement 2 | . 1 1 Assault . | . . . Garrison . | . . . Intercept . | . . . Searches Triggered . | . . . Construction Impeded 1 | . . 1 Haulers Reinforced . | . . . Active Scanning Responses . | . . . Cargo Convoy Interrupts . | . . . Stealth | -11 -10 -9 --------- Run | Yrd Mat Mat Distress Signals 2 | . . 2 Communications Jammed . | . . . Distress Signals . | . . . Times Spotted 38 | 1 11 26 Peak Tracking Total 6 | 1 3 6 Tactical Retreats 2 | . . 2 Traps | -11 -10 -9 ------- Run | Yrd Mat Mat Traps Triggered . | . . . Indirectly . | . . . Trap Hack Attempts . | . . . Triggered . | . . . Disarmed . | . . . Reprogrammed . | . . . Reused . | . . . Traps Extracted . | . . . Installed . | . . . Triggered . | . . . Machines | -11 -10 -9 ---------- Run | Yrd Mat Mat Machines Disabled . | . . . Max in Single Turn . | . . . Machines Repaired . | . . . Machines Dismantled . | . . . Machines Sabotaged . | . . . Overloaded Fab Kills . | . . . Hacking | -11 -10 -9 --------- Run | Yrd Mat Mat Machines Accessed 9 | . 6 3 Terminals 5 | . 4 1 Fabricators . | . . . Repair Stations 1 | . 1 . Recycling Units 2 | . 1 1 Scanalyzers 1 | . . 1 Garrison Access . | . . . Total Hacks 33 | . 20 13 Successful 24 | . 14 10 Failed 9 | . 6 3 Catastrophic 1 | . 1 . Database Lockouts . | . . . Manual 1 | . 1 . Terminals 14 | . 11 3 Fabricators . | . . . Repair Stations 5 | . 5 . Recycling Units 11 | . 4 7 Scanalyzers 3 | . . 3 Garrison Access . | . . . Terminal Hacks 9 | . 7 2 Record 5 | . 5 . Dispatch Records 1 | . . 1 Maintenance Status 1 | . 1 . Patrol Status 1 | . . 1 Zone Layout 1 | . 1 . Fabricator Hacks . | . . . Repair Station Hacks 3 | . 3 . Scan Component 2 | . 2 . Repair 1 | . 1 . Recycling Unit Hacks 10 | . 4 6 Recycle Component 2 | . . 2 Process 3 | . 1 2 Report Inventory 3 | . 2 1 Retrieve Matter 2 | . 1 1 Scanalyzer 2 | . . 2 Insert Component 1 | . . 1 Analyze 1 | . . 1 Garrison Access Hacks . | . . . Unauthorized Hacks . | . . . Terminals . | . . . Fabricators . | . . . Repair Stations . | . . . Recycling Units . | . . . Scanalyzers . | . . . Garrison Access . | . . . Data Cores Recovered . | . . . Used . | . . . Hacking Detections 7 | . 4 3 Full Trace Events 6 | . 3 3 Feedback Events . | . . . Feedback Blocked . | . . . Robot Schematics Acquired . | . . . Robots Built . | . . . Authchips . | . . . Time . | . . . Total Robot Build Rating . | . . . Part Schematics Acquired 1 | . . 1 Parts Built . | . . . Authchips . | . . . Time . | . . . Total Part Build Rating . | . . . Parts Repaired 1 | . 1 . Time 26 | . 26 . Parts Recycled 2 | . . 2 Recycled Matter 270 | . 111 159 Retrieved Matter 422 | . 114 308 Retrieved Components . | . . . Parts Scanalyzed 1 | . . 1 Part Schematics Acquired 1 | . . 1 Parts Damaged . | . . . Bothacking | -11 -10 -9 ------------ Run | Yrd Mat Mat Used RIF Installer . | . . . Robots Hacked . | . . . Non-combat . | . . . Combat . | . . . Robot Hacks Applied . | . . . Relay Couplers Released . | . . . Fabnet Peak Effective % . | . . . Robots Rewired . | . . . Allies Hacked . | . . . Hacks Repelled . | . . . Allies | -11 -10 -9 -------- Run | Yrd Mat Mat Total Allies . | . . . Largest Group . | . . . Highest-Rated Group . | . . . Highest-Rated Ally . | . . . Total Orders . | . . . Ally Attacks . | . . . Total Damage . | . . . Kills . | . . . Allies Corrupted . | . . . Allies Melted . | . . . Intel | -11 -10 -9 ------- Run | Yrd Mat Mat Robot Analysis Total . | . . . Derelict Logs Recovered . | . . . Drone Launches . | . . . Drone Recoveries . | . . . Exploration | -11 -10 -9 ------------- Run | Yrd Mat Mat Turns Passed 1677 | 232 710 735 Spaces Moved 887 | 120 439 328 Core 129 | 33 8 88 Treads 159 | . 2 157 Legs 598 | 87 428 83 Wheels . | . . . Hover . | . . . Flight 1 | . 1 . Fastest Speed 50 | 50 120 100 Average Speed 129 | 100 122 150 Slowest Speed 275 | 120 275 250 Overloaded Moves . | . . . Propulsion Burnouts . | . . . Robots Hopped . | . . . Cave-ins Triggered . | . . . Exploration Rate (%) 28 | 5 59 21 Regions Visited 2 Branch Regions . Pre-discovered Areas . | . . . Known Exits Taken . | . . . Unknown Exits Taken 2 | 1 1 . Scrap Searched . | . . . Spaces Dug . | . . . Terrain Destroyed 43 | . 32 11 Melee . | . . . Projectile . | . . . AOE 43 | . 32 11 Terrain Rammed . | . . . Walls Destroyed . | . . . Machines Disabled . | . . . Actions | -11 -10 -9 --------- Run | Yrd Mat Mat Total 1292 | 226 589 477 Wait 235 | 89 79 67 Move 885 | 119 438 328 Hop . | . . . Pick Up 30 | 10 11 9 Fast Attach 10 | . 10 . Attach 21 | 5 7 9 Detach 4 | . 3 1 Swap 16 | 1 10 5 Drop 23 | . 18 5 Fire 66 | 2 12 52 Melee . | . . . Ram 1 | . . 1 Kick 1 | . 1 . Crush . | . . . Escape Stasis . | . . . Rewire . | . . . Trap . | . . . Miscellaneous . | . . . Route ------- -11/Scrapyard -10/Materials (discovered 2 exits: *Mat x2) -9/Materials History --------- Turn | Location | Event 2 | -11/Scrapyard | Met Revision 17 160 | -11/Scrapyard | Discovered new exit (range 8) 233 | -11/Scrapyard | Entered Materials 302 | -10/Materials | Build established: Mutant 310 | -10/Materials | Repaired Assault Rifle? 669 | -10/Materials | Discovered new exit (range 13) 802 | -10/Materials | Discovered new exit (range 8) 943 | -10/Materials | Entered another Materials area 943 | -9/Materials | Evolved 2 slots: Propulsion x1, Utility x1 1453 | -9/Materials | Lost 3 parts (1p1u1w) 1614 | -9/Materials | Core integrity fell below 50% 1627 | -9/Materials | Core integrity fell below 20% 1653 | -9/Materials | Lost 3 parts (1p2w) 1678 | -9/Materials | Destroyed by G-34 Mercenary with Small Laser Last Messages --------------- >>Retrieve(Matter) Matter ejected: 308 K-01 Serf collects debris. Acquired Lrg. Matter Pod. Discarded Imp. Targeting Computer. Acquired Imp. Targeting Computer. Ion Engine destroyed. Beam Rifle destroyed. Slammed into G-34 Mercenary. Destabilizing: System interference. Terrain Scanner temporarily disabled. Acquired Lgt. EM Pulse Cannon. To regain energy, simply wait via the mouse wheel, '.', or KP5. Also make sure your per-turn energy generation is a net positive, and consider deactivating power-draining parts if not. Dropped Sml. Battery. Extracted 85 energy. [Achievement: First Step to Greatness] Map ----- +----------------------------------------------------+ | ?????????????????????????????????????????????? | | ?????????????????????????????????????????????? | | ?????????????????????????????????????????????? | | ?????????????????????????????????????????????? | | ?????????????????????????????????????????????? | | ?????????????????????????????????????????????? | | ?????????????????????????????????????????????? | | ?????????????????????????????????????? ??????? | | ????????????????????????????#????????????????? | | ??????????????????????????#?#???????? ???????? | | ????????????????????????#??#?#?? ???? ???????? | | ?????????????????????? ? ? #????"?? ???????? | | ?????????????????????? ?????#? ? ?????????? | | ?????????????????? ????""??###?? ?? #????# | | ?????????????????? #???"??######????????##?? | | ????????????????#? ???"?" #??#??#???###?###? | | ?????????????????? ?????? #####?##?###?##### | | ???????????????#?# #?????#?#?#######??#??##?? | | ?????????????????# #??###?#?######?##??###### | | ?????????????????# ########?###############?? | | ????????????????## ############### ##?#####?? | | ?????????????????# ######## """ #?#####?## | | ?????????????????# ######## "Y" ########## | | ?????????????????# # # % # # | | ????????????###### # " # #""" | | ????????????#"""?# #@ "" # ! #""" # | | ?????##+#####"Y"## # "" # ! #"S # | | ?????# # """ # ! #""" + | | ?????# #gg"" # # "" # | | ?????# = + """ # # # | | ????"" """ """ # """ ######/### # | | ????"T ? """ """ # g""" #?### % /% # | | ????"" """ """ # " ###?# ########### | | ?????# # #?### ##### # | | ?????# # ##### ## # | | ??????# ### # ##### ## # | | ??????????# ########?#?# ## # | | ??????????# ######## ####### ### | | ??????????# | | ??????????# ######## | | ??????????# ######?#????# | | ??????????# ?????????#?####+########## | | ??????????# ?????????? # #?#### | | ??????????# ???????"T??? ?? "?"###### | | ??????????+ ?????????? ??? ? ??"??#### | | ??????????# ##### ??????????????????????#### | | ??????????# ?????#?????????????????????#?### | | ?????????? ????????????????????????????????# | | ????????? ???????????????????????#???##??#? | | ?????????????????????????????????????????###?? | +----------------------------------------------------+ Best States ------------- Heat Dissipation 38 Energy Generation 14 Energy Capacity 250 Matter Stores 308 Matter Capacity 450 Sight Range 16 Robot Scan Range 14 Terrain Scan Range 14 Terrain Scan Density 85 Armor Coverage 150 Utility Shielding 33 Evasion (%) 55 Targeting Accuracy 6 Recoil Reduction 2 Item Schematics ----------------- Utility Shielding | -9/Materials | Scanalyzed Robot Schematics ------------------ None Fabricated ------------ Nothing Alien Tech Used ----------------- None Achievements -------------- First Step to Greatness Loot Pinata One Hack Too Far Part-time Mechanic Storm Trooper Uninvited Guest Challenges ------------ None Game ------ Seed PowerGuidedBroadsword Manual? 0 Play Time 01:01:30 Cumulative 0.9 hours Start 2024.04.03 @ 18:29:33 End 2024.04.03 @ 19:39:29 Sessions 1 Manual Loads 0 Difficulty Rogue Special Mode None Game No. 1 Rogue 1 Adventurer 0 Explorer 0 Win Type - Total 0 Types 0/0/0/0/0/0/0/0/0 Lore% 0 Gallery% 2 Achievement% 2 Wizard Run 0 Options --------- Layout 1 ASCII 0 Keyboard 0 Movement Mouse Keybinds 0 Fullscreen 2 Font 24/Smallcaps Map View 50x35 Zoom Use 10% Tactical HUD 0 Map Filters NONE Filters NONE Steam 1 RUN: 3ad7fb4f-dcd2-442a-bc4a-41c13d875e13